bitfinex/quotes_BTCUSD_20250716
["timestamp","ask_amount","ask_price","bid_price","bid_amount"]
[1752673311149,0.00115117,118490.0,118480.0,1.81967849]
[1752673311363,0.00115117,118490.0,118480.0,3.91229149]
[1752673311589,4.003e-05,118490.0,118480.0,3.76668549]
[1752673311796,4.003e-05,118490.0,118480.0,3.89145949]
[1752673312230,0.003,118510.0,118500.0,1.23549458]
[1752673312441,0.003,118510.0,118500.0,1.45716486]
[1752673313087,0.003,118510.0,118500.0,2.77872971]
[1752673313770,0.004,118510.0,118500.0,2.64056971]
[1752673313984,0.004,118510.0,118500.0,2.77672971]
[1752673314225,0.003,118530.0,118520.0,1.07076051]
[1752673314439,0.00315176,118530.0,118520.0,1.30689164]
[1752673314652,1e-08,118530.0,118520.0,4.30812064]
[1752673314865,1e-08,118530.0,118520.0,6.03465864]
[1752673315083,1e-08,118530.0,118520.0,6.33205864]
[1752673315322,1e-08,118530.0,118520.0,5.72948564]
[1752673315581,1e-08,118530.0,118520.0,1.52438464]
[1752673316031,0.00100001,118530.0,118520.0,1.52838464]
[1752673316255,1e-08,118530.0,118520.0,4.91173264]
[1752673316713,0.00100001,118530.0,118520.0,4.92214692]
[1752673316957,0.00100001,118530.0,118520.0,3.53216992]
[1752673317408,0.00100001,118530.0,118520.0,3.51135864]
[1752673317620,0.00100001,118530.0,118520.0,3.42699264]
[1752673318050,1e-08,118530.0,118520.0,4.27909395]
[1752673318270,1e-08,118530.0,118520.0,4.03169395]
[1752673318935,0.003,118550.0,118540.0,0.5803673]
[1752673319152,0.003,118550.0,118540.0,4.3248072]
[1752673319370,0.003,118550.0,118540.0,2.3411342]
[1752673319812,0.003,118550.0,118540.0,1.61725104]
[1752673320243,0.003,118550.0,118540.0,1.15603804]
[1752673320469,0.1771553,118540.0,118530.0,0.68185914]
[1752673320693,0.16873365,118530.0,118520.0,0.51302775]
[1752673320907,0.25357666,118530.0,118520.0,0.67470651]
[1752673321151,0.08484301,118530.0,118520.0,1.19189179]
[1752673321369,0.01687257,118530.0,118520.0,1.2172031]
[1752673321590,0.18559098,118540.0,118530.0,0.34]
[1752673321803,0.21679098,118540.0,118530.0,0.47616]
[1752673322042,0.21679098,118540.0,118530.0,0.98086131]
[1752673322264,0.21679098,118540.0,118530.0,0.64086131]
[1752673322489,0.18559098,118540.0,118530.0,0.82646796]
[1752673322706,0.01687101,118540.0,118530.0,1.18334039]
[1752673322915,0.03374188,118540.0,118530.0,1.18350039]
[1752673323141,0.02530627,118540.0,118530.0,1.18350039]
[1752673323365,0.18559084,118540.0,118530.0,0.64505365]
[1752673323576,0.01687143,118540.0,118530.0,1.17506421]
[1752673323794,0.02530676,118540.0,118530.0,1.18350039]
[1752673324008,0.01687122,118540.0,118530.0,1.17506414]
[1752673324223,0.02530669,118540.0,118530.0,1.17506414]
[1752673324661,0.01687094,118540.0,118530.0,1.17506414]
[1752673324876,0.03374237,118540.0,118530.0,1.17506414]
[1752673325136,0.02530655,118540.0,118530.0,1.17506414]
[1752673325349,0.0337423,118540.0,118530.0,1.17706414]
[1752673325769,0.20246228,118540.0,118530.0,1.16862796]
[1752673326220,0.01687115,118540.0,118530.0,1.18550046]
[1752673326446,0.02530683,118540.0,118530.0,1.18550046]
[1752673326669,0.21089803,118540.0,118530.0,0.84670131]
[1752673326892,0.30340148,118540.0,118530.0,0.002]
[1752673327778,0.32873148,118540.0,118530.0,0.002]
[1752673328217,0.01687385,118520.0,118510.0,0.20251347]
[1752673328444,0.0253111,118520.0,118510.0,0.67938523]
[1752673328666,0.0253111,118520.0,118510.0,0.68767869]
[1752673328667,0.02531103,118520.0,118510.0,0.68767869]
[1752673328888,0.20249617,118520.0,118510.0,0.48516522]
[1752673329125,0.18562232,118520.0,118510.0,0.48516522]
[1752673329342,0.20062232,118520.0,118510.0,0.48516522]
[1752673329555,0.20062232,118520.0,118510.0,0.99186653]
[1752673330207,0.01687414,118520.0,118510.0,1.16906661]
[1752673330420,0.03374778,118520.0,118510.0,1.18594203]
[1752673330635,0.0253106,118520.0,118510.0,1.18594203]
[1752673330852,0.016873,118530.0,118520.0,0.19405942]
[1752673331058,0.20247965,118530.0,118520.0,0.69876073]
[1752673331269,0.21091576,118530.0,118520.0,0.69032377]
[1752673331483,0.20247965,118530.0,118520.0,0.18562246]
[1752673331714,0.20247965,118530.0,118520.0,0.69876087]
[1752673331924,0.20247965,118530.0,118520.0,0.81860659]
[1752673332131,0.19404333,118530.0,118520.0,0.83648101]
[1752673332337,0.19404333,118530.0,118520.0,0.84491804]
[1752673332546,0.19404333,118530.0,118520.0,0.853355]
[1752673332765,0.18431941,118540.0,118530.0,0.53404297]
[1752673332766,0.01687164,118540.0,118530.0,0.53404297]
[1752673333032,0.0114349,118550.0,118540.0,0.1771553]
[1752673333241,0.18014029,118550.0,118540.0,0.64130131]
[1752673333453,0.19604029,118550.0,118540.0,0.64130131]
[1752673334092,0.19604029,118550.0,118540.0,0.1366]
[1752673334311,0.01687243,118530.0,118520.0,0.68288623]
[1752673334537,0.20247908,118530.0,118520.0,0.83536037]
[1752673334763,0.19405913,118520.0,118510.0,0.51720734]
[1752673334984,0.21742217,118520.0,118510.0,0.00015176]
[1752673335213,0.21742217,118520.0,118510.0,0.13675176]
[1752673335667,0.21742217,118520.0,118510.0,0.65395191]
[1752673335881,0.21742217,118520.0,118510.0,0.47675176]
[1752673336086,0.20898514,118520.0,118510.0,0.98145307]
[1752673336306,0.20898514,118520.0,118510.0,1.16709118]
[1752673336550,0.22585956,118520.0,118510.0,1.17552893]
[1752673336779,0.22585956,118520.0,118510.0,1.175529]
[1752673337042,0.22585956,118520.0,118510.0,1.17552829]
[1752673337043,0.00843675,118520.0,118510.0,1.17552829]
[1752673337273,0.01687229,118530.0,118520.0,0.20249602]
[1752673337507,0.18559098,118540.0,118530.0,0.19404283]
[1752673337734,0.033743,118540.0,118530.0,0.83542414]
[1752673337965,0.04217897,118540.0,118530.0,0.83542414]
[1752673338194,0.18560651,118530.0,118520.0,0.34]
[1752673338450,0.20150651,118530.0,118520.0,0.65386528]
[1752673338673,0.19307019,118530.0,118520.0,0.47668]
[1752673338912,0.20867019,118530.0,118520.0,0.34]
[1752673339144,0.21706916,118490.0,118480.0,0.003]
[1752673339890,0.24241116,118490.0,118480.0,0.003]
[1752673340115,0.24241116,118490.0,118480.0,0.1398]
[1752673341006,0.24241116,118490.0,118480.0,0.13972]
[1752673341436,0.24541116,118490.0,118480.0,0.13972]
[1752673341683,0.33092144,118490.0,118480.0,0.13972]
[1752673342090,0.33092144,118490.0,118480.0,0.13968]
[1752673342738,0.33092144,118490.0,118480.0,0.13972]
[1752673343199,0.19414132,118470.0,118460.0,1.04161892]
[1752673343432,0.19414132,118470.0,118460.0,1.17880119]
[1752673343645,0.19414132,118470.0,118460.0,1.19568388]
[1752673343865,0.02532221,118470.0,118460.0,1.19568338]
[1752673344072,0.19414132,118470.0,118460.0,1.19568338]
[1752673344297,0.1856852,118480.0,118470.0,0.52570066]
[1752673344509,0.1856852,118480.0,118470.0,1.0388422]
[1752673344510,0.04219948,118480.0,118470.0,1.0388422]
[1752673344744,0.2025646,118480.0,118470.0,1.03040168]
[1752673344956,0.19412486,118480.0,118470.0,1.03040189]
[1752673345161,0.2025651,118480.0,118470.0,1.0388427]
[1752673345370,0.01687941,118480.0,118470.0,1.05572367]
[1752673345615,0.21945061,118490.0,118480.0,0.18568512]
[1752673345846,0.21945061,118490.0,118480.0,0.83542638]
[1752673346120,0.21945061,118490.0,118480.0,0.84386619]
[1752673346344,0.04222055,118490.0,118480.0,0.85230593]
[1752673346556,0.21945061,118490.0,118480.0,0.83542638]
[1752673346772,0.21101074,118490.0,118480.0,0.83542638]
[1752673346989,0.03375696,118490.0,118480.0,0.84386612]
[1752673347204,0.22788614,118490.0,118480.0,0.83542638]
[1752673347423,0.22788614,118490.0,118480.0,0.84386626]
[1752673347850,0.21944697,118490.0,118480.0,0.84386626]
[1752673348061,0.21944697,118490.0,118480.0,0.83542638]
[1752673348507,0.1772276,118500.0,118490.0,0.17723014]
[1752673348761,0.05065137,118500.0,118490.0,0.70724903]
[1752673348982,0.02531537,118500.0,118490.0,1.04724903]
[1752673349205,0.19409174,118500.0,118490.0,0.53410869]
[1752673349448,0.0168767,118500.0,118490.0,1.04724903]
[1752673349673,0.20253055,118500.0,118490.0,1.02193145]
[1752673349902,0.19409231,118500.0,118490.0,1.03037083]
[1752673350123,0.19409231,118500.0,118490.0,1.06379724]
[1752673350339,0.19409231,118500.0,118490.0,1.07223648]
[1752673350566,0.17721518,118500.0,118490.0,0.86968841]
[1752673351004,0.17721518,118500.0,118490.0,1.18335847]
[1752673351229,0.17721518,118500.0,118490.0,1.03847902]
[1752673351443,0.17721518,118500.0,118490.0,1.18331847]
[1752673351878,0.18565329,118500.0,118490.0,1.19175785]
[1752673352100,0.2025307,118500.0,118490.0,1.19175785]
[1752673352320,0.19409231,118500.0,118490.0,0.68705654]
[1752673352668,0.18565378,118500.0,118490.0,0.67017771]
[1752673352751,0.18565378,118500.0,118490.0,1.00608841]
[1752673352958,0.18565378,118500.0,118490.0,0.86968841]
[1752673353174,0.18565378,118500.0,118490.0,1.17479902]
[1752673353392,0.18565378,118500.0,118490.0,1.19167771]
[1752673353616,0.03375369,118500.0,118490.0,1.20855598]
[1752673353844,0.21096887,118500.0,118490.0,1.20011695]
[1752673354054,0.0421925,118500.0,118490.0,1.21703515]
[1752673354274,0.02531502,118500.0,118490.0,1.21703515]
[1752673354502,0.03375362,118500.0,118490.0,1.21703515]
[1752673354724,0.02531545,118500.0,118490.0,1.21699515]
[1752673354949,0.01687685,118500.0,118490.0,1.08067515]
[1752673355168,0.01687685,118500.0,118490.0,1.21695515]
[1752673355373,0.03375419,118500.0,118490.0,1.21695515]
[1752673355574,0.20253056,118500.0,118490.0,1.21695515]
[1752673355797,0.03375412,118500.0,118490.0,1.21695515]
[1752673356840,0.04219293,118500.0,118490.0,1.21695515]
[1752673357055,0.20253091,118500.0,118490.0,1.05635771]
[1752673357249,0.18565385,118500.0,118490.0,1.00684841]
[1752673357450,0.18565385,118500.0,118490.0,1.1840784]
[1752673357628,0.18565385,118500.0,118490.0,1.19251771]
[1752673357838,0.18565385,118500.0,118490.0,0.6878164]
[1752673358015,0.02531537,118500.0,118490.0,1.20939598]
[1752673358221,0.02531537,118500.0,118490.0,1.20839598]
[1752673358415,0.19409174,118500.0,118490.0,1.19151771]
[1752673358848,0.19321504,118500.0,118490.0,0.34]
[1752673359047,0.02532193,118470.0,118460.0,1.04211768]
[1752673359257,0.21102287,118470.0,118460.0,0.3419379]
[1752673359427,0.18570094,118470.0,118460.0,0.00326227]
[1752673359791,0.20210094,118470.0,118460.0,0.00326227]
[1752673359951,0.30381122,118470.0,118460.0,0.00326227]
[1752673360156,0.30381122,118470.0,118460.0,0.13942227]
[1752673360820,0.42225121,118470.0,118460.0,0.00326227]
[1752673361087,0.53175508,118470.0,118460.0,1e-08]
[1752673361459,1.37645639,118470.0,118460.0,1e-08]
[1752673361657,0.87175508,118470.0,118460.0,1e-08]
[1752673361806,0.88081098,118470.0,118460.0,1e-08]
[1752673362017,1.37721639,118470.0,118460.0,1e-08]
[1752673362226,0.87251508,118470.0,118460.0,1e-08]
[1752673362442,1.37721639,118470.0,118460.0,1e-08]
[1752673363704,1.38221639,118470.0,118460.0,0.00100001]
[1752673364153,0.17727488,118460.0,118450.0,0.57397601]
[1752673364349,1.18898647,118460.0,118450.0,0.57397601]
[1752673364555,1.18898647,118460.0,118450.0,0.26468148]
[1752673364768,1.13898647,118460.0,118450.0,0.22067433]
[1752673364982,0.77976516,118460.0,118450.0,0.22067433]
[1752673365403,1.28446647,118460.0,118450.0,0.22067433]
[1752673365822,0.77976516,118460.0,118450.0,0.22067433]
[1752673366034,1.28846647,118460.0,118450.0,0.22167433]
[1752673366474,0.63828516,118460.0,118450.0,0.22167433]
[1752673366693,0.78360516,118460.0,118450.0,0.22167433]
[1752673366904,1.28830647,118460.0,118450.0,0.22167433]
[1752673367150,1.30284732,118460.0,118450.0,0.22167433]
[1752673368230,1.30284732,118460.0,118450.0,1e-08]
[1752673368231,1.35284732,118460.0,118450.0,1e-08]
[1752673368476,1.01284732,118460.0,118450.0,1e-08]
[1752673368695,0.45814601,118460.0,118450.0,1e-08]
[1752673368899,0.96284732,118460.0,118450.0,1e-08]
[1752673370855,1.01284732,118460.0,118450.0,1e-08]
[1752673371065,1.10860694,118460.0,118450.0,1e-08]
[1752673371275,1.02284732,118460.0,118450.0,1e-08]
[1752673372343,0.97284732,118460.0,118450.0,1e-08]
[1752673372558,0.30828516,118460.0,118450.0,1e-08]
[1752673372783,0.45344516,118460.0,118450.0,1e-08]
[1752673373011,0.97268732,118460.0,118450.0,1e-08]
[1752673373661,1.05844694,118460.0,118450.0,1e-08]
[1752673374116,0.97244732,118460.0,118450.0,1e-08]
[1752673374332,0.82752732,118460.0,118450.0,1e-08]
[1752673374543,0.97248732,118460.0,118450.0,1e-08]
[1752673375762,1.02248732,118460.0,118450.0,1e-08]
[1752673376449,0.22730482,118440.0,118430.0,0.01]
[1752673376696,0.99323641,118440.0,118430.0,0.01]
[1752673377152,0.20239461,118410.0,118400.0,0.04017464]
[1752673377376,0.9531062,118410.0,118400.0,0.04017464]
[1752673377834,0.47376589,118410.0,118400.0,0.04017464]
[1752673378056,0.99300805,118410.0,118400.0,0.04017464]
[1752673378290,1.02283422,118410.0,118400.0,0.04017464]
[1752673378517,1.02333944,118410.0,118400.0,0.04017464]
[1752673379264,0.35703813,118410.0,118400.0,0.04017464]
[1752673379495,0.29717111,118410.0,118400.0,0.04017464]
[1752673379749,0.30561627,118410.0,118400.0,0.22598522]
[1752673379994,0.3140615,118410.0,118400.0,0.12287646]
[1752673380212,0.3140615,118410.0,118400.0,0.09753949]
[1752673380213,0.29717068,118410.0,118400.0,0.09753949]
[1752673380472,0.01689117,118400.0,118390.0,0.53427203]
[1752673380706,0.18581051,118400.0,118390.0,0.34]
[1752673380931,0.0168916,118400.0,118390.0,0.5342725]
[1752673381171,0.00844544,118400.0,118390.0,0.54271865]
[1752673381388,0.03378262,118400.0,118390.0,0.55116495]
[1752673381616,0.03478255,118400.0,118390.0,0.55316495]
[1752673382092,0.20370196,118400.0,118390.0,0.342]
[1752673382332,0.27232093,118400.0,118390.0,0.342]
[1752673382571,0.27232093,118400.0,118390.0,1.03252722]
[1752673382572,0.001,118400.0,118390.0,1.03252722]
[1752673382785,0.18680986,118400.0,118390.0,1.04772744]
[1752673383007,0.0094453,118400.0,118390.0,1.07267359]
[1752673383249,0.01789074,118400.0,118390.0,1.07267359]
[1752673383466,0.01789067,118400.0,118390.0,1.07267359]
[1752673383676,0.001,118400.0,118390.0,1.07267359]
[1752673383904,0.001,118400.0,118390.0,1.21691359]
[1752673384106,0.001,118400.0,118390.0,1.07267359]
[1752673384423,0.001,118400.0,118390.0,1.21687359]
[1752673384638,0.00944544,118400.0,118390.0,1.21687359]
[1752673384895,0.02633682,118400.0,118390.0,1.21687359]
[1752673385144,0.20370167,118400.0,118390.0,0.69527976]
[1752673385382,0.18681065,118400.0,118390.0,0.4862]
[1752673385629,0.18681065,118400.0,118390.0,0.342]
[1752673386336,0.18681065,118400.0,118390.0,0.51093318]
[1752673386584,0.18681065,118400.0,118390.0,0.51937983]
[1752673386795,0.27232093,118400.0,118390.0,0.342]
[1752673387022,0.27232093,118400.0,118390.0,0.002]
[1752673387239,0.28752093,118400.0,118390.0,0.002]
[1752673387465,0.90772271,118400.0,118390.0,0.002]
[1752673387694,0.80742224,118400.0,118390.0,0.002]
[1752673388328,0.83440116,118400.0,118390.0,0.002]
[1752673388544,0.32969985,118400.0,118390.0,0.002]
[1752673388766,0.30272093,118400.0,118390.0,0.002]
[1752673388995,0.30272093,118400.0,118380.0,0.02498136]
[1752673388996,0.17737969,118390.0,118380.0,0.02498136]
[1752673389220,0.40684997,118390.0,118380.0,0.02498136]
[1752673389495,0.40668997,118390.0,118380.0,0.02498136]
[1752673389753,0.01689267,118390.0,118380.0,0.72397172]
[1752673389971,0.02533854,118390.0,118380.0,0.73241859]
[1752673390197,0.03378498,118390.0,118380.0,0.73241859]
[1752673390407,0.34325616,118400.0,118390.0,0.17737983]
[1752673390621,0.42880644,118400.0,118390.0,0.17737983]
[1752673390905,0.42380644,118400.0,118390.0,0.19427292]
[1752673391133,0.16941077,118410.0,118400.0,0.17736478]
[1752673391340,0.0860155,118410.0,118400.0,0.85837733]
[1752673391576,0.00894988,118410.0,118400.0,0.88262277]
[1752673391781,0.01739475,118410.0,118400.0,0.88262277]
[1752673391999,0.02583955,118410.0,118400.0,0.88262277]
[1752673392213,0.03428457,118410.0,118400.0,0.88262277]
[1752673392419,0.21163445,118410.0,118400.0,0.87417733]
[1752673392659,0.01739461,118410.0,118400.0,0.88262277]
[1752673392881,0.02583948,118410.0,118400.0,0.88262277]
[1752673393100,0.2116348,118410.0,118400.0,0.68206609]
[1752673393332,0.27181054,118410.0,118400.0,0.14392]
[1752673394433,0.17736471,118400.0,118390.0,0.341]
[1752673394694,0.26287499,118400.0,118390.0,0.34]
[1752673395574,0.26287499,118400.0,118390.0,0.50893318]
[1752673395801,0.26287499,118400.0,118390.0,0.34]
[1752673397611,0.28823399,118400.0,118390.0,0.34]
[1752673397826,0.28823399,118400.0,118390.0,0.50893318]
[1752673398044,0.02533868,118390.0,118380.0,0.72651487]
[1752673398250,0.02533868,118390.0,118380.0,0.74271487]
[1752673398251,0.01689216,118390.0,118380.0,0.74271487]
[1752673398481,0.0422312,118390.0,118380.0,0.73426814]
[1752673398691,0.04223113,118390.0,118380.0,1.23896945]
[1752673398890,0.0422317,118390.0,118380.0,1.22207564]
[1752673399103,0.02533897,118390.0,118380.0,1.23052279]
[1752673399311,0.01689253,118390.0,118380.0,1.23052279]
[1752673399583,0.19358113,118390.0,118380.0,1.22307564]
[1752673399903,0.18513476,118390.0,118380.0,0.70185618]
[1752673400119,0.18513476,118390.0,118380.0,0.71030341]
[1752673400331,0.18513476,118390.0,118380.0,0.52446136]
[1752673400546,0.18513476,118390.0,118380.0,0.50946136]
[1752673400759,0.18513476,118390.0,118380.0,0.69530312]
[1752673400973,0.19527264,118390.0,118380.0,0.71965013]
[1752673401189,0.20371879,118390.0,118380.0,0.71965013]
[1752673401413,0.001,118390.0,118380.0,1.23279838]
[1752673401650,0.001,118390.0,118380.0,1.25708525]
[1752673403137,0.00944608,118390.0,118380.0,1.25708525]
[1752673403585,0.001,118390.0,118380.0,1.19947553]
[1752673403803,0.001,118390.0,118380.0,1.35705638]
[1752673404017,0.001,118390.0,118380.0,2.68847638]
[1752673404221,0.001,118390.0,118380.0,2.89119638]
[1752673404871,0.001,118390.0,118380.0,1.66801153]
[1752673405091,0.00944601,118390.0,118380.0,1.34259553]
[1752673405306,0.001,118390.0,118380.0,1.34259553]
[1752673405763,0.08603819,118410.0,118400.0,0.53425588]
[1752673406058,0.2633875,118410.0,118400.0,0.66048478]
[1752673406269,0.25494284,118410.0,118400.0,0.48312]
[1752673406964,0.25494284,118410.0,118380.0,0.8098872]
[1752673406965,0.17737941,118390.0,118380.0,0.36598136]
[1752673407191,0.07708931,118390.0,118380.0,0.37183728]
[1752673407412,0.19425602,118400.0,118390.0,0.51736896]
[1752673407632,0.18581044,118400.0,118390.0,0.34]
[1752673407872,0.17736471,118400.0,118390.0,0.34]
[1752673408084,0.26287499,118400.0,118390.0,0.34]
[1752673408306,0.17737983,118390.0,118380.0,0.52499603]
[1752673408528,0.17737983,118390.0,118380.0,0.50810136]
[1752673409195,0.24602284,118390.0,118380.0,0.02498136]
[1752673409415,0.24602284,118390.0,118380.0,0.16798136]
[1752673410143,0.24702284,118390.0,118380.0,0.16894136]
[1752673410362,0.24702284,118390.0,118380.0,0.16794136]
[1752673410720,0.24802284,118390.0,118380.0,0.16794136]
[1752673411341,0.17937983,118390.0,118380.0,0.16794136]
[1752673414402,0.17937983,118390.0,118380.0,0.06794136]
[1752673414823,0.17739482,118380.0,118370.0,0.54199639]
[1752673415031,0.19428884,118380.0,118370.0,0.69300404]
[1752673415240,0.18584197,118380.0,118370.0,0.68455639]
[1752673415448,0.18584197,118380.0,118370.0,0.69300404]
[1752673415656,0.18584197,118380.0,118370.0,0.6761088]
[1752673415862,0.18584197,118380.0,118370.0,0.69300461]
[1752673416074,0.18584197,118380.0,118370.0,0.6603088]
[1752673416307,0.18584197,118380.0,118370.0,0.66130981]
[1752673416716,0.18584197,118380.0,118370.0,0.66975782]
[1752673416931,0.17739482,118380.0,118370.0,0.66975782]
[1752673417142,0.17739482,118380.0,118370.0,0.67820576]
[1752673417374,0.18584197,118380.0,118370.0,0.69510107]
[1752673417586,0.01689409,118380.0,118370.0,0.71140064]
[1752673417802,0.19428877,118380.0,118370.0,0.70295306]
[1752673418014,0.19428877,118380.0,118370.0,0.71140064]
[1752673418243,0.0253409,118380.0,118370.0,0.71140064]
[1752673418446,0.2111833,118380.0,118370.0,0.71140064]
[1752673418669,0.16893318,118390.0,118370.0,0.71140064]
[1752673418881,0.02534075,118380.0,118370.0,0.70970483]
[1752673419082,0.20273592,118380.0,118370.0,0.69280974]
[1752673419499,0.20273592,118380.0,118370.0,0.5154]
[1752673419712,0.20273592,118380.0,118370.0,0.34034]
[1752673419713,0.18584197,118380.0,118370.0,0.34034]
[1752673419939,0.80775356,118380.0,118370.0,0.00034]
[1752673420127,0.83311856,118380.0,118370.0,0.00034]
[1752673420784,0.83311856,118380.0,118370.0,0.00134]
[1752673421000,0.17740967,118370.0,118360.0,0.14522]
[1752673421261,1.00982427,118370.0,118360.0,0.00306]
[1752673422124,1.03263904,118370.0,118360.0,0.00306]
[1752673422344,0.72806681,118360.0,118350.0,1e-08]
[1752673422589,0.95565709,118360.0,118350.0,1e-08]
[1752673422784,0.95561709,118360.0,118350.0,1e-08]
[1752673423000,0.29433493,118360.0,118350.0,1e-08]
[1752673423212,0.43637493,118360.0,118350.0,1e-08]
[1752673423436,0.95561709,118360.0,118350.0,1e-08]
[1752673423677,1.00593171,118360.0,118350.0,1e-08]
[1752673423880,0.94107624,118360.0,118350.0,1e-08]
[1752673424089,0.43633493,118360.0,118350.0,1e-08]
[1752673424519,0.43629493,118360.0,118350.0,1e-08]
[1752673425226,0.94099624,118360.0,118350.0,1e-08]
[1752673425879,0.79903624,118360.0,118350.0,1e-08]
[1752673426096,0.94099624,118360.0,118350.0,0.00100001]
[1752673426313,0.80603624,118360.0,118350.0,0.00100001]
[1752673426524,0.79903624,118360.0,118350.0,1e-08]
[1752673426945,0.94583624,118360.0,118350.0,0.00100001]
[1752673428650,0.80403624,118360.0,118350.0,0.00100001]
[1752673428855,0.94583624,118360.0,118350.0,0.00100001]
[1752673429053,0.44113493,118360.0,118350.0,0.00100001]
[1752673429522,0.44507193,118360.0,118350.0,0.00100001]
[1752673429742,0.94977324,118360.0,118350.0,0.00100001]
[1752673430363,0.80797324,118360.0,118350.0,0.00100001]
[1752673430781,0.41323193,118360.0,118350.0,0.00100001]
[1752673431527,0.19481023,118360.0,118350.0,0.00100001]
[1752673431833,0.33613023,118360.0,118350.0,0.00100001]
[1752673432423,0.19481023,118360.0,118350.0,0.00100001]
[1752673432638,0.18981023,118360.0,118350.0,0.1774398]
[1752673432853,0.18981023,118360.0,118350.0,0.01610001]
[1752673433056,0.18981023,118360.0,118350.0,1e-08]
[1752673433920,0.18981023,118360.0,118350.0,0.16899029]
[1752673434138,0.02083423,118360.0,118350.0,0.18588909]
[1752673434357,0.20670775,118360.0,118350.0,0.20188909]
[1752673434559,0.20670775,118360.0,118350.0,0.1774398]
[1752673434763,0.19825917,118360.0,118350.0,0.1774398]
[1752673434965,0.19825917,118360.0,118350.0,0.18588924]
[1752673435164,0.19825917,118360.0,118350.0,1e-08]
[1752673435377,0.2753208,118360.0,118350.0,1e-08]
[1752673435592,0.86486512,118360.0,118350.0,1e-08]
[1752673435806,0.88096512,118360.0,118350.0,1e-08]
[1752673436428,0.37626381,118360.0,118350.0,1e-08]
[1752673436851,0.38226381,118360.0,118350.0,0.00100001]
[1752673437061,0.4222808,118360.0,118350.0,0.00100001]
[1752673438068,0.2813208,118360.0,118350.0,0.00100001]
[1752673438275,0.4222408,118360.0,118350.0,0.00100001]
[1752673438743,0.4376408,118360.0,118350.0,0.00100001]
[1752673439352,0.4316408,118360.0,118350.0,1e-08]
[1752673439589,0.4356408,118360.0,118350.0,0.00100001]
[1752673439824,0.4513408,118360.0,118350.0,0.00100001]
[1752673440320,0.4511408,118360.0,118350.0,0.00100001]
[1752673440544,0.97038296,118360.0,118350.0,1e-08]
[1752673442808,0.82946296,118360.0,118350.0,1e-08]
[1752673443003,0.3102208,118360.0,118350.0,1e-08]
[1752673443209,0.4510208,118360.0,118350.0,1e-08]
[1752673443489,0.95572211,118360.0,118350.0,1e-08]
[1752673443708,0.97026296,118360.0,118350.0,1e-08]
[1752673443930,1.05170582,118360.0,118350.0,1e-08]
[1752673444869,0.19255464,118340.0,118330.0,0.002]
[1752673445097,0.93948623,118340.0,118330.0,0.002]
[1752673445534,0.94948623,118340.0,118330.0,0.002]
[1752673445964,0.93948623,118340.0,118330.0,0.002]
[1752673446172,0.94248623,118340.0,118330.0,0.003]
[1752673446386,0.94244623,118340.0,118330.0,0.003]
[1752673446883,0.28606492,118340.0,118330.0,0.004]
[1752673447140,0.79076623,118340.0,118330.0,0.004]
[1752673447356,0.28606492,118340.0,118330.0,0.004]
[1752673447571,0.41164492,118340.0,118330.0,0.004]
[1752673448045,0.27096492,118340.0,118330.0,0.004]
[1752673448253,0.41160492,118340.0,118330.0,0.004]
[1752673448702,0.98574137,118340.0,118330.0,1e-08]
[1752673448917,0.96374708,118340.0,118330.0,1e-08]
[1752673449125,0.96366708,118340.0,118330.0,1e-08]
[1752673449984,0.82310708,118340.0,118330.0,1e-08]
[1752673450234,0.80856623,118340.0,118330.0,1e-08]
[1752673450451,0.93264623,118340.0,118330.0,1e-08]
[1752673450957,0.27096492,118340.0,118330.0,1e-08]
[1752673451181,0.41140492,118340.0,118330.0,1e-08]
[1752673453007,0.27096492,118340.0,118330.0,1e-08]
[1752673453226,0.41132492,118340.0,118330.0,1e-08]
[1752673456024,0.41120492,118340.0,118330.0,1e-08]
[1752673456229,0.27096492,118340.0,118330.0,1e-08]
[1752673456453,0.41112492,118340.0,118330.0,1e-08]
[1752673457299,0.41104492,118340.0,118330.0,1e-08]
[1752673457823,0.19390465,118340.0,118330.0,1e-08]
[1752673458035,0.19390465,118340.0,118330.0,0.20071885]
[1752673458254,0.19390465,118340.0,118330.0,0.20916972]
[1752673458438,0.21080431,118340.0,118330.0,0.73922298]
[1752673458700,0.008,118340.0,118330.0,1.22759342]
[1752673458915,0.01344972,118340.0,118330.0,1.22759342]
[1752673459124,0.00844972,118340.0,118330.0,1.22759341]
[1752673459339,0.002,118340.0,118330.0,1.22859341]
[1752673459560,0.01889944,118340.0,118330.0,1.22759341]
[1752673459773,0.01044965,118340.0,118330.0,1.22759341]
[1752673459981,0.01989937,118340.0,118330.0,1.22859341]
[1752673460225,0.1973538,118340.0,118330.0,1.22859341]
[1752673460456,0.01989937,118340.0,118330.0,1.22859341]
[1752673460682,0.003,118340.0,118330.0,1.22859341]
[1752673460926,0.01144965,118340.0,118330.0,1.22859341]
[1752673461135,0.02834945,118340.0,118330.0,1.22859341]
[1752673461347,0.01989944,118340.0,118330.0,0.7238921]
[1752673461557,0.19735401,118340.0,118330.0,1.19479102]
[1752673461766,0.18890465,118340.0,118330.0,0.341]
[1752673461968,0.18890465,118340.0,118330.0,0.48068]
[1752673462455,0.18890465,118340.0,118330.0,0.49668]
[1752673463141,0.1973548,118340.0,118330.0,1.20300166]
[1752673463387,0.01144965,118340.0,118330.0,1.21990275]
[1752673463602,0.003,118340.0,118330.0,1.30541303]
[1752673463826,0.003,118340.0,118330.0,1.31995388]
[1752673464052,0.003,118340.0,118330.0,0.81525257]
[1752673464280,0.003,118340.0,118330.0,1.31995388]
[1752673465156,0.03729566,118370.0,118360.0,0.56532153]
[1752673465399,0.00350491,118370.0,118360.0,1.20954284]
[1752673465834,0.01195235,118370.0,118360.0,1.20954284]
[1752673466088,0.00350491,118370.0,118360.0,1.20954284]
[1752673466511,0.0204,118370.0,118360.0,1.20954284]
[1752673466693,0.0214,118370.0,118360.0,1.21054284]
[1752673466935,0.02139993,118370.0,118360.0,1.21054284]
[1752673467147,0.02984758,118370.0,118360.0,1.21054284]
[1752673467327,0.03829538,118370.0,118360.0,1.21054284]
[1752673467590,0.04674332,118370.0,118360.0,1.21054284]
[1752673467828,0.03829538,118370.0,118360.0,1.21054284]
[1752673468042,0.02139986,118370.0,118360.0,1.21054284]
[1752673468255,0.00450491,118370.0,118360.0,1.29605312]
[1752673468913,0.00450491,118370.0,118360.0,1.31059397]
[1752673469147,0.00450491,118370.0,118360.0,3.16273197]
[1752673469370,0.003,118390.0,118380.0,0.57942955]
[1752673469579,0.003,118390.0,118380.0,1.30911231]
[1752673470034,0.003,118390.0,118380.0,1.16979231]
[1752673470265,0.18882599,118390.0,118380.0,0.37075117]
[1752673470483,0.18882599,118390.0,118380.0,0.47939117]
[1752673470701,0.18882599,118390.0,118380.0,0.34015117]
[1752673470917,0.18882599,118390.0,118380.0,0.47939117]